[Event "Prague Festival Open 2022"]
[Site "Prague"]
[Date "2022.06.15"]
[Round "7.9"]
[White "Wagner, Dennis"]
[Black "Sokolovsky, Yahli"]
[Result "1-0"]
[ECO "C84"]
[WhiteElo "2586"]
[BlackElo "2369"]
[Annotator "TA"]
[PlyCount "81"]
[EventDate "2022.06.10"]
[EventType "swiss"]
[EventCountry "CZE"]
[SourceTitle "playchess.com"]
[Source "ChessBase"]
[SourceQuality "1"]
[TimeControl "40/5400+30:1800+30"]

{[%evp 16,81,31,0,0,0,0,-1,6,-2,23,37,36,29,25,29,18,31,38,33,80,59,75,62,109,21,83,58,69,29,200,192,190,33,36,52,54,52,117,110,121,20,87,85,92,91,79,95,68,82,122,43,98,98,115,75,129,123,231,237,242,232,348,328,29995,29996,29996,29997]} 1. e4 {[%emt 0:00:04]} e5 {[%emt 0:00:11]} 2. Nf3 {[%emt 0:00:07]} Nc6 {[%emt 0:00:05]} 3. Bb5 {[%emt 0:00:07][%cal Bf1b5,Bb5a4,Ba4b3,Bb3d5][%mdl 32]} a6 {[%emt 0:00:05]} 4. Ba4 {[%emt 0:00:04]} Nf6 {[%emt 0:00:06]} 5. O-O {[%emt 0:00:09]} Be7 {[%emt 0:00:15]} 6. d3 {[%emt 0:00:13]} b5 {[%emt 0:00:40]} 7. Bb3 {[%emt 0:00:05]} O-O {[%emt 0:00:16]} 8. a4 {[%emt 0:00:11]} Bb7 {[%emt 0:00:31]} 9. Nc3 {[%emt 0:00:16]} Na5 {[%emt 0:02:47] C84: Closed Ruy Lopez: Unusual White 6th moves.} 10. Bd5 {[%emt 0:00:56]} c6 {[%emt 0:02:40]} 11. Ba2 {[%emt 0:00:06]} b4 {[%emt 0:04:38] The position is equal.} 12. Ne2 {[%emt 0:00:17]} d6 {[%emt 0:07:16]} 13. c3 {[%emt 0:02:49]} c5 {[%emt 0:00:28]} 14. cxb4 {[%emt 0:17:33]} cxb4 {[%emt 0:00:05]} 15. Ng3 {[%emt 0:00:05]} Rb8 {[%emt 0:11:19]} 16. Bd2 {[%emt 0:06:55] [#]} Bc8 $146 {[%emt 0:09:39]} ({Predecessor:} 16... d5 17. Nxe5 dxe4 18. dxe4 Nxe4 19. Nxe4 Bxe4 20. Qe2 Bd5 21. Bxd5 Qxd5 22. Rad1 Qe6 23. Rfe1 Bf6 {1-0 (69) Aveskulov,V (2529)-Ben Artzi,I (2419) Chess.com INT 2015}) 17. Rc1 {[%emt 0:06:39]} Nd7 {[%emt 0:12:16]} (17... Bg4 $14 {should be considered.}) 18. d4 $16 {[%emt 0:03:32]} exd4 {[%emt 0:03:35]} 19. Nxd4 {[%emt 0:00:54]} Nc5 {[%emt 0:00:32]} (19... Bf6 $14 {deserves consideration.} 20. Ngf5 Nc5) 20. Be3 {[%emt 0:30:02]} (20. Ndf5 $16) 20... Bf6 {[%emt 0:09:43]} (20... g6 $11) 21. Bd5 {[%emt 0:03:02]} Bb7 {[%emt 0:03:27]} 22. Nh5 {[%emt 0:06:35] Threatens to win with Nf5.} Nxe4 $2 {[%emt 0:12:40]} (22... Bxd5 $11 {and Black is okay.} 23. exd5 (23. Nxf6+ Qxf6 24. exd5 Rfe8 $14) 23... Re8) 23. Bxb7 $1 $18 {[%emt 0:00:35]} Rxb7 {[%emt 0:00:21]} 24. Qg4 $2 {[%emt 0:01:42]} (24. Nf5 $1 $18) 24... Bxd4 $14 {[%emt 0:02:35]} 25. Bxd4 {[%emt 0:03:17][%csl Gd4,Gh5][%cal Rg4g7]} f5 {[%emt 0:01:19]} 26. Qe2 {[%emt 0:01:16][%mdl 1024] White has compensation.} Qa8 {[%emt 0:06:38]} (26... Qg5 $14) 27. f3 $16 {[%emt 0:01:46]} Nc5 {[%emt 0:00:24]} 28. Rfe1 {[%emt 0:11:00]} (28. Bxc5 $6 dxc5 29. Rfe1 (29. Rxc5 Qa7 $11) 29... Rbf7 $11) ({White should try} 28. Nxg7 $16 {Nh5 is the strong threat.} Rxg7 29. Bxg7 Kxg7 30. Qe7+ Kg8 31. Qxd6) 28... Ncb3 {[%emt 0:03:54]} (28... Nab3 $11 {keeps the balance.} 29. Rcd1 Nxd4 30. Rxd4 a5) 29. Qe6+ {[%emt 0:01:35]} Kh8 {[%emt 0:00:01]} 30. Rcd1 {[%emt 0:00:52]} Nxd4 {[%emt 0:00:30]} 31. Rxd4 {[%emt 0:00:01]} Nc6 {[%emt 0:02:47]} 32. Rdd1 {[%emt 0:00:18]} (32. Rxd6 $2 Re7 33. Rxc6 (33. Qxe7 $2 Nxe7 34. Rxe7 Qc8 $19) 33... Rxe6 34. Rcxe6 g6 $19) 32... Qa7+ {[%emt 0:02:08] [#]} 33. Kh1 {[%emt 0:00:02] Active counter play!} ({Better is} 33. Kf1 $1 $16 {[%cal Oe6e8] aiming for Qe8!} Rd7 34. Qxf5) 33... Rd7 {[%emt 0:00:11] [#]} (33... Re7 $14 34. Qxd6 {[#]} Rfe8 $1 35. Rxe7 Qxe7 36. Qxe7 (36. Qxc6 $2 Qe1+ 37. Rxe1 Rxe1#) 36... Nxe7) 34. Qxf5 $1 $40 {[%emt 0:01:32][%cal Rf5f8][%mdl 128] White is out for blood.} Rdd8 {[%emt 0:02:29]} 35. Qe4 {[%emt 0:01:51]} Ne5 {[%emt 0:00:56]} (35... Qd7 $142) 36. Qxb4 {[%emt 0:01:06]} Rb8 {[%emt 0:00:32]} (36... a5 $16 {is a better defense.} 37. Qe4 Ng6) 37. Qxd6 $18 {[%emt 0:00:20]} Nc4 {[%emt 0:00:28]} 38. Qe6 {[%emt 0:00:36]} Qc5 {[%emt 0:00:30]} (38... Qf7 $142 39. Qxf7 (39. Qxa6 Nxb2 40. Ng3 Nxd1 $17) 39... Rxf7) 39. Nxg7 {[%emt 0:00:32] Black must now prevent Qh6.} ({Not} 39. Qxa6 Nxb2 40. Ng3 Nxd1 41. Rxd1 Rfd8 $17) 39... Kxg7 {[%emt 0:00:30]} (39... Rb6 $18 40. Qe4 Nd6) 40. Rd7+ {[%emt 0:00:23]} Kh8 {[%emt 0:00:08]} 41. Qh6 {[%emt 0:02:49] Weighted Error Value: White=0.20 (precise) /Black=0.54} 1-0

[Event "Prague Festival Open 2022"]
[Site "Prague"]
[Date "2022.06.15"]
[Round "7.10"]
[White "Stefansson, Hannes"]
[Black "Wagh Suyog"]
[Result "1-0"]
[ECO "B52"]
[WhiteElo "2534"]
[BlackElo "2352"]
[Annotator "TA"]
[PlyCount "123"]
[EventDate "2022.06.10"]
[EventType "swiss"]
[EventCountry "CZE"]
[SourceTitle "playchess.com"]
[Source "ChessBase"]
[SourceQuality "1"]
[TimeControl "40/5400+30:1800+30"]

{[%evp 9,123,15,10,12,35,30,37,26,33,26,27,26,27,27,51,22,19,0,0,-2,0,0,12,29,54,-75,-91,-90,-92,-87,-24,-87,-7,-9,0,-85,-29,-30,-26,-9,0,0,0,0,1,0,0,0,0,0,20,27,35,6,7,19,40,40,39,18,43,14,60,0,0,0,121,131,125,112,219,221,359,283,369,360,362,348,354,325,337,337,346,325,306,271,345,353,570,550,941,926,950,936,1564,1093,1844,1791,1781,1606,1599,1558,2262,2030,2189,1956,1811,1714,1367,1075,998,900,2280,2048,29986,29987]} 1. e4 {[%emt 0:00:04]} c5 {[%emt 0:02:41]} 2. Nf3 {[%emt 0:00:11]} d6 {[%emt 0:00:19]} 3. Bb5+ {[%emt 0:00:19]} Bd7 {[%emt 0:02:37]} 4. c4 {[%emt 0:00:49]} Bxb5 {[%emt 0:03:06]} 5. cxb5 {[%emt 0:00:08]} Nf6 {[%emt 0:00:06]} 6. Nc3 {[%emt 0:00:48] B52: Sicilian: Moscow Variation with 3...Bd7.} Nbd7 {[%emt 0:00:27]} 7. d4 {[%emt 0:05:12]} cxd4 {[%emt 0:00:34]} 8. Nxd4 {[%emt 0:00:14] White is slightly better.} g6 {[%emt 0:00:04][%cal Od6d5]} 9. O-O {[%emt 0:01:42]} Bg7 {[%emt 0:00:34]} 10. Qe2 {[%emt 0:00:59]} O-O {[%emt 0:00:07]} 11. Rd1 {[%emt 0:01:00]} Rc8 {[%emt 0:09:50]} 12. a4 {[%emt 0:04:43]} Qa5 {[%emt 0:16:49] [#]} 13. Nc2 $146 {[%emt 0:06:43]} ({Predecessor:} 13. Bd2 Qb4 14. Be1 Qc4 15. Nc6 Qe6 16. Nxa7 Ra8 17. b6 Nxb6 18. Nab5 Rfc8 19. a5 {0-1 (52) De Jong,M (2336)-Van Foreest,J (2547) Groningen 2015}) 13... Rfe8 {[%emt 0:07:49]} 14. Ra3 {[%emt 0:06:36]} Qc7 {[%emt 0:19:33]} 15. a5 {[%emt 0:03:20]} Ne5 {[%emt 0:01:27][%cal Bd7e5,Be5c4,Bc4e3][%mdl 32]} 16. Ra4 {[%emt 0:07:51]} e6 {[%emt 0:06:09][%cal Od6d5]} 17. Be3 {[%emt 0:02:19]} (17. Na3 $1 $14 {stays ahead.}) 17... Nc4 $17 {[%emt 0:11:18]} 18. Na3 {[%emt 0:10:05]} Nxe3 {[%emt 0:03:02]} (18... Nxa5 $2 19. b6 axb6 20. Nab5 $18) 19. Qxe3 {[%emt 0:00:37]} Qb8 {[%emt 0:02:11]} (19... d5 $1 $17 {[%cal Rd5d4] White must now prevent ...d4!} 20. g3 Ng4) 20. a6 {[%emt 0:08:19] [#]} (20. g3 $11 {keeps the balance.}) 20... b6 {[%emt 0:02:45]} ({Black should play} 20... bxa6 $1 $17 21. Rxa6 d5) 21. Nc2 $1 $11 {[%emt 0:07:46][%cal Ba3c2,Bc2d4,Bd4c6][%mdl 32]} d5 {[%emt 0:02:08] Strongly threatening ...Nxe4.} 22. e5 {[%emt 0:05:27]} (22. Nb4 $11) 22... Nd7 {[%emt 0:00:07]} (22... Ne4 $1 $17 23. Nxe4 Rxc2) 23. f4 {[%emt 0:00:30]} f6 {[%emt 0:04:15]} 24. exf6 {[%emt 0:00:41]} Bxf6 {[%emt 0:00:39]} 25. Nd4 {[%emt 0:01:54]} Qd6 {[%emt 0:03:07]} 26. Nc6 {[%emt 0:01:29] Pair of Knights!} Qc7 {[%emt 0:01:12]} 27. Qf2 {[%emt 0:04:54]} Nb8 {[%emt 0:00:30]} 28. Nd4 {[%emt 0:00:16]} Qg7 {[%emt 0:00:18]} 29. Nce2 {[%emt 0:02:03]} Rc5 {[%emt 0:00:22]} 30. Ra3 {[%emt 0:01:23][%cal Of4f5]} Rc4 {[%emt 0:00:14]} 31. Rc3 {[%emt 0:04:09]} Rxc3 {[%emt 0:00:26]} 32. bxc3 {[%emt 0:00:06]} Qc7 {[%emt 0:00:51]} 33. h4 {[%emt 0:02:50]} Nd7 {[%emt 0:00:44]} 34. h5 {[%emt 0:01:29]} Nc5 {[%emt 0:00:06]} 35. hxg6 {[%emt 0:01:01]} hxg6 {[%emt 0:00:00]} (35... Ne4 $11 {deserves consideration.} 36. Qf3 hxg6) 36. Ng3 {[%emt 0:00:18]} ({Better is} 36. Nc6 $14) 36... e5 {[%emt 0:01:21]} 37. Nde2 {[%emt 0:02:04]} Ne4 {[%emt 0:00:40]} (37... Qd7 $11 {remains equal.}) 38. Nxe4 $16 {[%emt 0:01:15] White stays focused until the end.} dxe4 {[%emt 0:00:01]} 39. f5 {[%emt 0:01:11][%cal Bf4f5,Bf5g6][%mdl 32]} Be7 {[%emt 0:00:54]} (39... Rf8 $16) 40. Qg3 $18 {[%emt 0:04:32]} ({Not} 40. fxg6 $2 Bc5 41. Nd4 exd4 42. cxd4 Rd8 $19) 40... Bc5+ {[%emt 0:00:31]} (40... g5 {was necessary.} 41. Qg4 Rf8) 41. Kf1 {[%emt 0:30:13][%cal Bg1f1,Bf1e1,Be1d2,Bd2c2][%mdl 32]} Qf7 {[%emt 0:06:42]} 42. Qxg6+ {[%emt 0:00:00]} Qxg6 {[%emt 0:00:52]} 43. fxg6 {[%emt 0:00:00][%mdl 4096] Endgame KRB-KRN} Rf8+ {[%emt 0:19:25]} 44. Ke1 {[%emt 0:00:00]} Bf2+ {[%emt 0:02:27]} 45. Kd2 {[%emt 0:00:00] aiming for Kc2.} Kg7 {[%emt 0:02:38]} 46. Kc2 {[%emt 0:00:00] Threatens to win with Rd7+.} Kxg6 {[%emt 0:00:12]} 47. Rd6+ {[%emt 0:00:00]} Kg5 {[%emt 0:00:34] [#]} 48. Re6 $1 {[%emt 0:00:00]} ({Weaker is} 48. Rd7 Ra8 $16) 48... Kf5 $2 {[%emt 0:01:00]} (48... Rf5 {is a better defense.} 49. Re7 Be3 50. Rxa7 Rf2 51. Rg7+ Kf6) 49. Re7 {[%emt 0:00:00]} e3 {[%emt 0:00:08]} 50. Rxa7 {[%emt 0:00:00]} Rd8 {[%emt 0:00:16]} 51. Rb7 {[%emt 0:00:00]} Rd2+ {[%emt 0:00:02]} 52. Kb3 {[%emt 0:00:00] Threatening mate with a7.} Rd1 {[%emt 0:00:26]} 53. Rxb6 {[%emt 0:00:00]} Ra1 {[%emt 0:00:05]} 54. Kb2 {[%emt 0:00:00]} Ra5 {[%emt 0:00:06]} 55. c4 {[%emt 0:00:00]} Ke4 {[%emt 0:00:07]} 56. Rd6 {[%emt 0:00:00]} Be1 {[%emt 0:00:08]} 57. Kb3 {[%emt 0:00:00]} Ra1 {[%emt 0:00:29]} 58. b6 {[%emt 0:00:00] White wants to mate with b7.} Rxa6 {[%emt 0:02:35]} 59. b7 {[%emt 0:00:00]} Rxd6 {[%emt 0:00:31]} 60. b8=Q {[%emt 0:00:00]} Rd3+ {[%emt 0:00:02]} 61. Ka4 {[%emt 0:00:00] White threatens Qb7+ and mate.} Rd2 {[%emt 0:00:02]} 62. Qb1+ {[%emt 0:00:00] Weighted Error Value: White=0.14 (very precise) /Black=0.32} 1-0

[Event "Prague Festival Open 2022"]
[Site "Prague"]
[Date "2022.06.15"]
[Round "7.11"]
[White "Serrano Salvador, Eduardo"]
[Black "Alsina Leal, Daniel"]
[Result "0-1"]
[ECO "A43"]
[WhiteElo "2286"]
[BlackElo "2508"]
[Annotator "TA"]
[PlyCount "106"]
[EventDate "2022.06.10"]
[EventType "swiss"]
[EventCountry "CZE"]
[SourceTitle "playchess.com"]
[Source "ChessBase"]
[SourceQuality "1"]
[TimeControl "40/5400+30:1800+30"]

{[%evp 9,106,25,32,18,18,0,0,0,9,0,0,-16,-2,-6,0,0,0,4,0,0,39,0,21,-25,-17,-17,-17,-16,-21,-19,-24,-32,-33,-38,-19,-59,-59,-59,-52,-79,-77,-71,-77,-79,-70,-102,-93,-95,-96,-146,-146,-136,-138,-142,-139,-162,-162,-162,-162,-175,-172,-176,-15,-21,0,-165,-152,-174,-159,-161,-166,-158,-155,-170,-170,-162,-157,-158,-170,-205,-205,-295,-204,-202,-202,-563,-536,-6041,-6111,-5854,-2239,-29968,-29965,-29987,-29988,-29988,-29988,-29989,-29990]} 1. d4 {[%emt 0:00:05]} Nf6 {[%emt 0:00:12]} 2. Nf3 {[%emt 0:00:13]} c5 {[%emt 0:00:14]} 3. d5 {[%emt 0:01:30]} b5 {[%emt 0:00:14]} 4. Bg5 {[%emt 0:00:40]} g6 {[%emt 0:00:18]} 5. Bxf6 {[%emt 0:02:48]} exf6 {[%emt 0:00:41]} 6. e4 {[%emt 0:00:59] A43: Schmid Benoni.} b4 $1 {[%emt 0:00:33][%mdl 4] is more profitable than 6...a6 at the moment.} 7. a3 {[%emt 0:04:41]} Bg7 $1 {[%emt 0:03:43] [#]} 8. axb4 $146 {[%emt 0:03:22] The position is equal.} ({Predecessor:} 8. Bd3 O-O 9. O-O d6 10. Nbd2 Qc7 11. Nc4 a5 12. Qd2 Nd7 13. axb4 cxb4 14. Nd4 {0-1 (41) Adly,A (2625)-Hesham,A (2397) Krasnaya Polyana 2021}) 8... cxb4 {[%emt 0:00:11]} 9. c3 {[%emt 0:02:56]} O-O {[%emt 0:04:17]} 10. Bd3 {[%emt 0:01:46]} ({Of course not} 10. cxb4 f5 $15) 10... bxc3 {[%emt 0:10:27]} 11. Nxc3 {[%emt 0:00:28]} d6 {[%emt 0:00:19]} 12. O-O {[%emt 0:01:58]} Bg4 {[%emt 0:01:21]} 13. h3 {[%emt 0:03:51]} Bxf3 {[%emt 0:00:08]} 14. Qxf3 {[%emt 0:00:06]} Nd7 {[%emt 0:00:20]} 15. Bb5 {[%emt 0:01:29]} Nc5 {[%emt 0:04:13]} 16. Bc6 {[%emt 0:03:49]} (16. b4 $142 Nb3 17. Ra2) 16... Rb8 $11 {[%emt 0:04:06]} 17. Rxa7 {[%emt 0:01:55]} Rxb2 {[%emt 0:05:05]} 18. Na4 {[%emt 0:06:45]} Nxa4 {[%emt 0:09:56]} 19. Rxa4 {[%emt 0:00:18]} Qe7 {[%emt 0:08:31]} 20. Qa3 {[%emt 0:02:18]} Rfb8 {[%emt 0:03:49]} 21. Ra8 {[%emt 0:01:49] [#] aiming for Qxb2.} Bf8 {[%emt 0:01:44]} 22. Qa7 {[%emt 0:06:15]} Qxa7 {[%emt 0:03:24]} 23. Rxa7 {[%emt 0:00:06]} Re2 {[%emt 0:00:39] Prevents Re1.} 24. Rb7 {[%emt 0:04:26]} Rxb7 {[%emt 0:02:00]} 25. Bxb7 {[%emt 0:00:06]} Rxe4 $17 {[%emt 0:00:25][%mdl 4096] Endgame KRB-KRB} 26. Ra1 {[%emt 0:00:33]} Bh6 {[%emt 0:12:11]} 27. Ra2 {[%emt 0:02:51]} f5 {[%emt 0:03:38]} 28. g3 {[%emt 0:02:31]} f4 {[%emt 0:00:52]} 29. gxf4 {[%emt 0:00:43]} (29. g4 $142) 29... Bxf4 {[%emt 0:00:37]} ({Worse is} 29... Rxf4 30. Kg2 $17) 30. Bc6 {[%emt 0:00:39]} Be5 {[%emt 0:01:40]} 31. Kg2 {[%emt 0:02:18]} Kg7 {[%emt 0:01:32]} 32. Kf1 {[%emt 0:05:35]} Rh4 {[%emt 0:02:00]} 33. Kg2 {[%emt 0:00:24]} Rd4 {[%emt 0:01:28]} 34. Rc2 {[%emt 0:03:43]} h5 {[%emt 0:02:21]} 35. Ra2 {[%emt 0:00:39]} Kf8 $2 {[%emt 0:11:43]} ({Better is} 35... f5 $19 {Threatens to win with ...Kf6.} 36. Rb2 Kf6) 36. Ra8+ $11 {[%emt 0:02:14]} Kg7 {[%emt 0:00:04]} (36... Ke7 $11) 37. Ra2 $1 $19 {[%emt 0:00:06] Black keeps a firm grip on the game.} Rd3 {[%emt 0:01:18]} 38. Rc2 {[%emt 0:02:20]} Bd4 {[%emt 0:01:16]} 39. Bb5 {[%emt 0:01:58]} Rb3 {[%emt 0:00:34]} 40. Be8 {[%emt 0:03:10]} Bc5 {[%emt 0:01:04] Black is more active.} 41. Re2 {[%emt 0:33:26]} Rd3 {[%emt 0:03:34]} 42. Bc6 {[%emt 0:00:00]} Kf6 {[%emt 0:06:01]} 43. Ra2 {[%emt 0:00:00]} Kg5 {[%emt 0:02:36]} 44. Re2 {[%emt 0:00:00]} f5 {[%emt 0:03:59]} 45. Rc2 {[%emt 0:00:00]} (45. Bb5 $142 Rxd5 46. Bc6) 45... h4 {[%emt 0:00:39][%cal Bh5h4,Bh4h3][%mdl 32]} 46. Re2 {[%emt 0:00:00]} Kf4 {[%emt 0:00:25] [#] White must now prevent ...g5.} 47. Be8 $2 {[%emt 0:00:00]} (47. Ra2 {is a better chance.}) 47... g5 {[%emt 0:00:31] And now ...g4 would win.} 48. Bf7 {[%emt 0:00:00]} g4 {[%emt 0:01:03]} 49. hxg4 {[%emt 0:00:00]} fxg4 {[%emt 0:00:13]} (49... h3+ $142 50. Kh2 fxg4) 50. Re6 {[%emt 0:00:00]} h3+ {[%emt 0:06:47] Black mates.} 51. Kh2 {[%emt 0:01:45]} Bxf2 {[%emt 0:04:21]} 52. Rf6+ {[%emt 0:00:20]} Kg5 {[%emt 0:00:39]} 53. Rg6+ {[%emt 0:00:22]} Kf5 {[%emt 0:00:20] Weighted Error Value: White=0.50/Black=0.18 (very precise)} 0-1

[Event "Prague Festival Open 2022"]
[Site "Prague"]
[Date "2022.06.15"]
[Round "7.12"]
[White "Domalchuk-Jonasson, Aleksandr"]
[Black "Hilby, Craig"]
[Result "0-1"]
[ECO "A40"]
[WhiteElo "2190"]
[BlackElo "2420"]
[Annotator "TA"]
[PlyCount "80"]
[EventDate "2022.06.10"]
[EventType "swiss"]
[EventCountry "CZE"]
[SourceTitle "playchess.com"]
[Source "ChessBase"]
[SourceQuality "1"]
[TimeControl "40/5400+30:1800+30"]

{[%evp 14,80,7,0,15,12,17,4,0,-23,-28,-105,-13,-9,0,5,27,28,26,-16,-17,-61,-42,-85,-109,-129,-144,-168,-120,-124,-80,-145,-23,-24,-33,-74,-73,-68,-70,-49,-31,-91,119,-70,57,-170,172,-128,-116,-186,-153,-152,-156,-652,-656,-633,-609,-29971,-29971,-29970,-29971,-29971,-29972,-29971,-9115,-29991,-29992,-29992,-29993]} 1. d4 {[%emt 0:00:03]} e6 {[%emt 0:00:05]} 2. c4 {[%emt 0:01:14]} b6 {[%emt 0:00:05]} 3. Nc3 {[%emt 0:02:54]} Bb7 {[%emt 0:00:07]} 4. e4 {[%emt 0:01:21]} Bb4 {[%emt 0:00:27]} 5. Bd3 {[%emt 0:00:15]} f5 {[%emt 0:00:17]} 6. Qh5+ {[%emt 0:01:53]} g6 {[%emt 0:00:12]} 7. Qe2 {[%emt 0:00:05]} Nf6 {[%emt 0:00:54]} 8. Bg5 {[%emt 0:00:43]} h6 {[%emt 0:02:16] A40: Unusual replies to 1 d4.} 9. Bxf6 {[%emt 0:05:44]} Qxf6 {[%emt 0:00:04]} 10. Nf3 {[%emt 0:02:57]} Nc6 {[%emt 0:00:09][%cal Bb8c6,Bc6e7,Be7g6,Bg6f4][%mdl 32] The position is equal.} 11. e5 {[%emt 0:05:54]} Qg7 {[%emt 0:02:08]} 12. O-O {[%emt 0:03:20] [#]} (12. a3 $11 {keeps the balance.} Bxc3+ 13. bxc3) 12... Bxc3 $146 {[%emt 0:01:57]} (12... g5 $1 $17 {[%cal Rg5g4] Strongly threatening ...g4.} 13. a3 Be7) ({Predecessor:} 12... g5 13. Nb5 Kd8 14. a3 Be7 15. Rfe1 g4 16. Nd2 a6 17. d5 Nxe5 18. Nc3 Bd6 {0-1 (48) Kuchin,P (1980)-Omelja,A (2329) Alushta 2011}) 13. bxc3 $11 {[%emt 0:00:26]} Ne7 {[%emt 0:02:09]} 14. a4 {[%emt 0:15:11][%cal Ba2a4,Ba4a5,Ba5a6][%mdl 32]} g5 {[%emt 0:02:43]} 15. a5 {[%emt 0:06:08]} Ng6 {[%emt 0:04:12]} 16. a6 {[%emt 0:03:28]} Bc6 {[%emt 0:01:09]} 17. d5 {[%emt 0:03:41]} Nf4 {[%emt 0:01:53]} 18. Qe3 {[%emt 0:02:04]} exd5 {[%emt 0:00:30][%cal Be6d5,Bd5c4][%mdl 32]} 19. Nd4 {[%emt 0:08:20]} dxc4 {[%emt 0:05:52]} 20. Nxf5 {[%emt 0:00:20]} Qf7 {[%emt 0:13:40]} (20... Qf8 $19 21. Be4 Nxg2 $1) 21. Be4 $17 {[%emt 0:00:31]} O-O-O {[%emt 0:00:43][%cal Of4g2]} 22. Bxc6 {[%emt 0:09:20]} (22. Nd4 $142 Bxe4 23. Qxe4) 22... Qxf5 {[%emt 0:02:14]} ({Black should play} 22... dxc6 $17 23. Qe4 Rhe8) 23. Be4 $11 {[%emt 0:00:39]} Qe6 {[%emt 0:01:23]} 24. Rad1 {[%emt 0:05:03]} Rhe8 {[%emt 0:03:42]} 25. g3 {[%emt 0:03:58]} Nh3+ {[%emt 0:03:03]} 26. Kg2 {[%emt 0:00:08] Black must now prevent Bd5.} d5 $36 {[%emt 0:01:37][%mdl 2048] Black is pushing.} 27. Bc2 {[%emt 0:07:07]} (27. Bb1 $15) 27... Kb8 $2 {[%emt 0:02:27] Black is more active.} (27... Rf8 $1 $17 {and life is bright.}) 28. f3 $2 {[%emt 0:02:52]} ({White must play} 28. f4 $1 $16 {[%cal Rf4f5]}) 28... h5 {[%emt 0:03:00]} (28... c5 $15) 29. Rd2 $2 {[%emt 0:00:58]} (29. f4 $1 $14 {is the one way to stay ahead.} gxf4 30. gxf4) 29... Rh8 $4 {[%emt 0:04:36][%mdl 8192]} (29... Rg8 $1 $19 {and all is fine. aiming for ...h4.} 30. Re1 Rgf8) 30. Rfd1 $2 {[%emt 0:00:29]} (30. f4 $1 $18 {[%cal Rf4f5]}) 30... h4 $17 {[%emt 0:03:54] Threatens to win with ...hxg3.} 31. Qd4 {[%emt 0:01:15]} (31. f4 $17 {might work better.}) 31... hxg3 $19 {[%emt 0:17:21] The board is on fire.} 32. hxg3 {[%emt 0:00:01] [#]} Rdg8 $1 {[%emt 0:02:00]} 33. Rf1 $2 {[%emt 0:05:40]} ({Don't go for} 33. Qxd5 $2 {[#]} Nf4+ $1 {[%mdl 512]} 34. Kf2 Nxd5 $19) (33. Kf1 $17 c6 34. Re1) 33... Qh6 {[%emt 0:02:39]} 34. Qg4 {[%emt 0:01:58] Prevents Nf4+.} Re8 {[%emt 0:04:04]} ({Inferior is} 34... Nf4+ 35. Kf2 Qh2+ 36. Ke1 Ng2+ 37. Ke2 $19) 35. Re1 {[%emt 0:00:49] [#]} Nf4+ $1 {[%emt 0:00:25][%mdl 512]} 36. gxf4 {[%emt 0:00:35]} Qh2+ {[%emt 0:00:07][%mdl 64] Skewer, Double Attack} 37. Kf1 {[%emt 0:00:01]} Qxd2 {[%emt 0:00:14]} 38. Qg2 {[%emt 0:00:53]} Qxf4 {[%emt 0:01:13] ( -> ...g4)} 39. Qg4 {[%emt 0:00:47]} Rh1+ {[%emt 0:00:20]} 40. Kf2 {[%emt 0:00:09]} Qh2+ {[%emt 0:00:23] Weighted Error Value: White=0.94/Black=0.51} 0-1